Workbook

Sheet Dashboard
A1: Total Sent: | D1: 427 | F1: Left process at stage 1: | J1: 417 | L1: Left process at stage 2: | P1: 9 | R1: Exited process: | V1: 56 | X1: Settled: | AA1: 28
A3: Δ from last month: | D3: -60 | F3: Δ from last month: | J3: 207 | L3: Δ from last month: | P3: 1 | R3: Δ from last month: | V3: -14 | X3: Δ from last month: | AA3: 9
A5: Rolling 12 months: | D5: 4586 | F5: Rolling 12 months: | J5: 2574 | L5: Rolling 12 months: | P5: 67 | R5: Rolling 12 months: | V5: 921 | X5: Rolling 12 months: | AA5: 445
A7: Left Process Breakdowns - Stage 1:
A9: Reason | H9: This Month | J9: Last Month | L9: Δ
A10: Liability Decision Timeout | H10: 397 | J10: 205 | L10: 192
A11: Other | H11: 20 | J11: 5 | L11: 15
A12: Total | H12: 417 | J12: 210 | L12: 207
A13: Left Process Breakdowns - Stage 2:
A15: Reason | H15: This Month | J15: Last Month | L15: Δ
A16: Interim payment more than £1,000 not agreed: | H16: 0 | J16: 0 | L16: 0
A17: Settlement pack repudiated: | H17: 5 | J17: 3 | L17: 2
A18: Settlement pack timeout: | H18: 4 | J18: 4 | L18: 0
A19: No agreement; Court Proceedings pack: | H19: 0 | J19: 1 | L19: -1
A20: Total | H20: 9 | J20: 8 | L20: 1

Sheet Backing Sheet Data
A1: Reporting date | B1: 2022-07-01
A2: Previous month | B2: 2022-06-01 | S2: 80900 | T2: 34623 | U2: 1043 | V2: 32563 | W2: 270 | X2: 4988 | Y2: 418028.1829
R3: Period | S3: CNFs Sent | T3: CNFs left at Stage 1 | U3: Stage 2 Exit | V3: Exit process | W3: Court Pack | X3: Settled claims | Y3: General Damages | AA3: Period | AB3: Rolling 12 CNF Sent | AC3: Rolling 12 CNF Left at Stage 1 | AD3: Rolling 12 Stage 2 Exit | AE3: Rolling 12 Exit Process | AF3: Rolling 12 Court Pack | AG3: Rolling 12 Settled Claims | AI3: Period | AJ3: CNFs Sent | AK3: CNFs left at Stage 1 | AL3: Stage 2 Exit | AM3: Exit process | AN3: Court Pack | AO3: Settled claims | AP3: General Damages
A4: Rolling 12 CNFs sent | E4: Average General Damages chart data | I4: Left Process Breakdown | R4: 2013-08-01 | S4: 167 | T4: 1 | U4: 0 | V4: 17 | W4: 0 | X4: 0 | AA4: 2013-08-01 | AI4: 2013-08-01 | AJ4: 167 | AK4: 1 | AL4: 0 | AM4: 17 | AN4: 0 | AO4: 0
R5: 2013-09-01 | S5: 334 | T5: 47 | U5: 0 | V5: 34 | W5: 0 | X5: 0 | AA5: 2013-09-01 | AI5: 2013-09-01 | AJ5: 334 | AK5: 47 | AL5: 0 | AM5: 34 | AN5: 0 | AO5: 0
A6: Period | B6: Rolling 12 Sent | E6: Row Labels | F6: Ave General Damages | I6: This Month LDT | J6: This Month Other Liability | K6: This Month Interim Payment Not Agreed | L6: This Month Repudiated | M6: This Month Timeout | N6: This Month Court Proceedings | R6: 2013-10-01 | S6: 620 | T6: 197 | U6: 0 | V6: 92 | W6: 0 | X6: 0 | AA6: 2013-10-01 | AI6: 2013-10-01 | AJ6: 620 | AK6: 197 | AL6: 0 | AM6: 92 | AN6: 0 | AO6: 0
A7: 2021-08-01 | B7: 3743 | E7: 2021-08-01 | F7: 3008.734782 | I7: 397 | J7: 20 | K7: 0 | L7: 5 | M7: 4 | N7: 0 | R7: 2013-11-01 | S7: 814 | T7: 284 | U7: 0 | V7: 126 | W7: 0 | X7: 0 | AA7: 2013-11-01 | AI7: 2013-11-01 | AJ7: 815 | AK7: 284 | AL7: 0 | AM7: 126 | AN7: 0 | AO7: 0
A8: 2021-09-01 | B8: 3749 | E8: 2021-09-01 | F8: 3245.840178 | R8: 2013-12-01 | S8: 724 | T8: 346 | U8: 2 | V8: 178 | W8: 0 | X8: 3 | Y8: 3309.666666 | AA8: 2013-12-01 | AI8: 2013-12-01 | AJ8: 724 | AK8: 346 | AL8: 2 | AM8: 178 | AN8: 0 | AO8: 3 | AP8: 3309.666666
A9: 2021-10-01 | B9: 3606 | E9: 2021-10-01 | F9: 3487.340217 | I9: CNF Sent Monthly Volumes Chart Data | R9: 2014-01-01 | S9: 1071 | T9: 507 | U9: 1 | V9: 268 | W9: 0 | X9: 5 | Y9: 5208 | AA9: 2014-01-01 | AI9: 2014-01-01 | AJ9: 1071 | AK9: 507 | AL9: 1 | AM9: 268 | AN9: 0 | AO9: 5 | AP9: 5208
A10: 2021-11-01 | B10: 3944 | E10: 2021-11-01 | F10: 3714.316756 | R10: 2014-02-01 | S10: 998 | T10: 377 | U10: 3 | V10: 212 | W10: 0 | X10: 21 | Y10: 5377.859047 | AA10: 2014-02-01 | AI10: 2014-02-01 | AJ10: 998 | AK10: 377 | AL10: 3 | AM10: 212 | AN10: 0 | AO10: 21 | AP10: 5377.859047
A11: 2021-12-01 | B11: 3986 | E11: 2021-12-01 | F11: 3321.544838 | I11: Sum of ClaimCount | J11: Column Labels | R11: 2014-03-01 | S11: 1249 | T11: 478 | U11: 3 | V11: 374 | W11: 3 | X11: 34 | Y11: 5664.852941 | AA11: 2014-03-01 | AI11: 2014-03-01 | AJ11: 1251 | AK11: 478 | AL11: 3 | AM11: 374 | AN11: 3 | AO11: 34 | AP11: 5664.852941
A12: 2022-01-01 | B12: 4012 | E12: 2022-01-01 | F12: 3527.666825 | I12: Row Labels | J12: RTA | K12: PL | L12: ELD | M12: EL | N12: Grand Total | R12: 2014-04-01 | S12: 1387 | T12: 446 | U12: 5 | V12: 407 | W12: 2 | X12: 32 | Y12: 4801.606875 | AA12: 2014-04-01 | AI12: 2014-04-01 | AJ12: 1388 | AK12: 446 | AL12: 5 | AM12: 407 | AN12: 2 | AO12: 32 | AP12: 4801.606875
A13: 2022-02-01 | B13: 4046 | E13: 2022-02-01 | F13: 3380.203333 | I13: 2021-08-01 | J13: 11505 | K13: 3283 | L13: 318 | M13: 2481 | N13: 17587 | R13: 2014-05-01 | S13: 1356 | T13: 545 | U13: 4 | V13: 547 | W13: 4 | X13: 42 | Y13: 5028.22238 | AA13: 2014-05-01 | AI13: 2014-05-01 | AJ13: 1359 | AK13: 545 | AL13: 4 | AM13: 547 | AN13: 4 | AO13: 42 | AP13: 5028.22238
A14: 2022-03-01 | B14: 4130 | E14: 2022-03-01 | F14: 4066.627777 | I14: 2021-09-01 | J14: 11300 | K14: 3623 | L14: 343 | M14: 2730 | N14: 17996 | R14: 2014-06-01 | S14: 1351 | T14: 590 | U14: 14 | V14: 589 | W14: 8 | X14: 74 | Y14: 4828.914324 | AA14: 2014-06-01 | AI14: 2014-06-01 | AJ14: 1351 | AK14: 590 | AL14: 14 | AM14: 589 | AN14: 8 | AO14: 74 | AP14: 4828.914324
A15: 2022-04-01 | B15: 4164 | E15: 2022-04-01 | F15: 4384.605714 | I15: 2021-10-01 | J15: 10043 | K15: 3479 | L15: 357 | M15: 2566 | N15: 16445 | R15: 2014-07-01 | S15: 1726 | T15: 543 | U15: 19 | V15: 651 | W15: 3 | X15: 86 | Y15: 4877.246744 | AA15: 2014-07-01 | AB15: 11797 | AC15: 4361 | AD15: 51 | AE15: 3495 | AF15: 20 | AG15: 297 | AI15: 2014-07-01 | AJ15: 1727 | AK15: 543 | AL15: 19 | AM15: 651 | AN15: 3 | AO15: 86 | AP15: 4877.246744
A16: 2022-05-01 | B16: 4351 | E16: 2022-05-01 | F16: 3896.656388 | I16: 2021-11-01 | J16: 9821 | K16: 3500 | L16: 427 | M16: 2681 | N16: 16429 | R16: 2014-08-01 | S16: 1302 | T16: 512 | U16: 12 | V16: 654 | W16: 10 | X16: 58 | Y16: 4740.314655 | AA16: 2014-08-01 | AB16: 12932 | AC16: 4872 | AD16: 63 | AE16: 4132 | AF16: 30 | AG16: 355 | AI16: 2014-08-01 | AJ16: 1303 | AK16: 512 | AL16: 12 | AM16: 654 | AN16: 10 | AO16: 58 | AP16: 4740.314655
A17: 2022-06-01 | B17: 4581 | E17: 2022-06-01 | F17: 3997.487894 | I17: 2021-12-01 | J17: 7687 | K17: 2480 | L17: 273 | M17: 2035 | N17: 12475 | R17: 2014-09-01 | S17: 1604 | T17: 559 | U17: 34 | V17: 703 | W17: 10 | X17: 106 | Y17: 4555.839622 | AA17: 2014-09-01 | AB17: 14202 | AC17: 5384 | AD17: 97 | AE17: 4801 | AF17: 40 | AG17: 461 | AI17: 2014-09-01 | AJ17: 1605 | AK17: 559 | AL17: 34 | AM17: 703 | AN17: 10 | AO17: 106 | AP17: 4555.839622
A18: 2022-07-01 | B18: 4586 | E18: 2022-07-01 | F18: 3584.553571 | I18: 2022-01-01 | J18: 8745 | K18: 3131 | L18: 378 | M18: 2473 | N18: 14727 | R18: 2014-10-01 | S18: 1575 | T18: 552 | U18: 34 | V18: 727 | W18: 20 | X18: 106 | Y18: 4804.339622 | AA18: 2014-10-01 | AB18: 15157 | AC18: 5739 | AD18: 131 | AE18: 5436 | AF18: 60 | AG18: 567 | AI18: 2014-10-01 | AJ18: 1584 | AK18: 552 | AL18: 34 | AM18: 727 | AN18: 20 | AO18: 106 | AP18: 4804.339622
E19: Grand Total | F19: 43615.57827 | I19: 2022-02-01 | J19: 7871 | K19: 3195 | L19: 317 | M19: 2477 | N19: 13860 | R19: 2014-11-01 | S19: 1503 | T19: 535 | U19: 31 | V19: 680 | W19: 11 | X19: 83 | Y19: 4192.844939 | AA19: 2014-11-01 | AB19: 15846 | AC19: 5990 | AD19: 162 | AE19: 5990 | AF19: 71 | AG19: 650 | AI19: 2014-11-01 | AJ19: 1518 | AK19: 535 | AL19: 31 | AM19: 680 | AN19: 11 | AO19: 83 | AP19: 4192.844939
I20: 2022-03-01 | J20: 8218 | K20: 3465 | L20: 445 | M20: 2820 | N20: 14948 | R20: 2014-12-01 | S20: 1303 | T20: 559 | U20: 34 | V20: 705 | W20: 10 | X20: 74 | Y20: 4345.077837 | AA20: 2014-12-01 | AB20: 16425 | AC20: 6203 | AD20: 194 | AE20: 6517 | AF20: 81 | AG20: 721 | AI20: 2014-12-01 | AJ20: 1309 | AK20: 559 | AL20: 34 | AM20: 705 | AN20: 10 | AO20: 74 | AP20: 4345.077837
I21: 2022-04-01 | J21: 7247 | K21: 2783 | L21: 357 | M21: 2201 | N21: 12588 | R21: 2015-01-01 | S21: 1799 | T21: 583 | U21: 31 | V21: 698 | W21: 12 | X21: 64 | Y21: 4383.794062 | AA21: 2015-01-01 | AB21: 17153 | AC21: 6279 | AD21: 224 | AE21: 6947 | AF21: 93 | AG21: 780 | AI21: 2015-01-01 | AJ21: 1811 | AK21: 583 | AL21: 31 | AM21: 698 | AN21: 12 | AO21: 64 | AP21: 4383.794062
B22: 35722 | E22: CNF Sent Monthly Volumes | I22: 2022-05-01 | J22: 7876 | K22: 3127 | L22: 459 | M22: 2528 | N22: 13990 | R22: 2015-02-01 | S22: 2335 | T22: 426 | U22: 28 | V22: 769 | W22: 5 | X22: 70 | Y22: 4623.180142 | AA22: 2015-02-01 | AB22: 18490 | AC22: 6328 | AD22: 249 | AE22: 7504 | AF22: 98 | AG22: 829 | AI22: 2015-02-01 | AJ22: 2361 | AK22: 426 | AL22: 28 | AM22: 769 | AN22: 5 | AO22: 70 | AP22: 4623.180142
A23: Exit Process Reason | B23: Total | I23: 2022-06-01 | J23: 7289 | K23: 2904 | L23: 485 | M23: 2404 | N23: 13082 | R23: 2015-03-01 | S23: 2629 | T23: 841 | U23: 21 | V23: 1143 | W23: 5 | X23: 86 | Y23: 4959.155 | AA23: 2015-03-01 | AB23: 19870 | AC23: 6691 | AD23: 267 | AE23: 8273 | AF23: 100 | AG23: 881 | AI23: 2015-03-01 | AJ23: 2647 | AK23: 841 | AL23: 21 | AM23: 1143 | AN23: 5 | AO23: 86 | AP23: 4959.155
A24: Claim requires further investigation | B24: 15456 | E24: DatePeriod | F24: ClaimType | G24: ClaimCount | I24: 2022-07-01 | J24: 7438 | K24: 2981 | L24: 427 | M24: 2257 | N24: 13103 | R24: 2015-04-01 | S24: 2243 | T24: 860 | U24: 28 | V24: 1182 | W24: 7 | X24: 74 | Y24: 4358.135 | AA24: 2015-04-01 | AB24: 20726 | AC24: 7105 | AD24: 290 | AE24: 9048 | AF24: 105 | AG24: 923 | AI24: 2015-04-01 | AJ24: 2254 | AK24: 860 | AL24: 28 | AM24: 1182 | AN24: 7 | AO24: 74 | AP24: 4358.135
A25: Other | B25: 10395 | E25: 2021-05-01 | F25: RTA | G25: 26904 | I25: Grand Total | J25: 105040 | K25: 37951 | L25: 4586 | M25: 29653 | N25: 177230 | R25: 2015-05-01 | S25: 1840 | T25: 781 | U25: 20 | V25: 988 | W25: 5 | X25: 86 | Y25: 3996.816627 | AA25: 2015-05-01 | AB25: 21210 | AC25: 7341 | AD25: 306 | AE25: 9489 | AF25: 106 | AG25: 967 | AI25: 2015-05-01 | AJ25: 1849 | AK25: 781 | AL25: 20 | AM25: 988 | AN25: 5 | AO25: 86 | AP25: 3996.816627
A26: Incomplete information provided on CNF | B26: 5525 | E26: 2021-06-01 | F26: RTA | G26: 26133 | R26: 2015-06-01 | S26: 1962 | T26: 999 | U26: 24 | V26: 998 | W26: 4 | X26: 78 | Y26: 4745.808589 | AA26: 2015-06-01 | AB26: 21821 | AC26: 7750 | AD26: 316 | AE26: 9898 | AF26: 102 | AG26: 971 | AI26: 2015-06-01 | AJ26: 1972 | AK26: 999 | AL26: 24 | AM26: 998 | AN26: 4 | AO26: 78 | AP26: 4745.808589
A27: Duplicated claim | B27: 2859 | E27: 2021-07-01 | F27: RTA | G27: 14787 | R27: 2015-07-01 | S27: 1772 | T27: 877 | U27: 31 | V27: 879 | W27: 10 | X27: 92 | Y27: 4072.280326 | AA27: 2015-07-01 | AB27: 21867 | AC27: 8084 | AD27: 328 | AE27: 10126 | AF27: 109 | AG27: 977 | AI27: 2015-07-01 | AJ27: 1779 | AK27: 877 | AL27: 31 | AM27: 879 | AN27: 10 | AO27: 92 | AP27: 4072.280326
A28: Withdrawal of claim | B28: 1033 | E28: 2021-08-01 | F28: RTA | G28: 11505 | R28: 2015-08-01 | S28: 1619 | T28: 655 | U28: 26 | V28: 649 | W28: 3 | X28: 74 | Y28: 3784.822432 | AA28: 2015-08-01 | AB28: 22184 | AC28: 8227 | AD28: 342 | AE28: 10121 | AF28: 102 | AG28: 993 | AI28: 2015-08-01 | AJ28: 1629 | AK28: 655 | AL28: 26 | AM28: 649 | AN28: 3 | AO28: 74 | AP28: 3784.822432
A29: Claim is too complex for process | B29: 172 | E29: 2021-09-01 | F29: RTA | G29: 11300 | R29: 2015-09-01 | S29: 1850 | T29: 705 | U29: 17 | V29: 750 | W29: 7 | X29: 89 | Y29: 3917.263595 | AA29: 2015-09-01 | AB29: 22430 | AC29: 8373 | AD29: 325 | AE29: 10168 | AF29: 99 | AG29: 976 | AI29: 2015-09-01 | AJ29: 1863 | AK29: 705 | AL29: 17 | AM29: 750 | AN29: 7 | AO29: 89 | AP29: 3917.263595
A30: Value of claim exceeds the upper limit | B30: 134 | E30: 2021-10-01 | F30: RTA | G30: 10043 | R30: 2015-10-01 | S30: 1882 | T30: 716 | U30: 22 | V30: 824 | W30: 8 | X30: 96 | Y30: 4040.405 | AA30: 2015-10-01 | AB30: 22737 | AC30: 8537 | AD30: 313 | AE30: 10265 | AF30: 87 | AG30: 966 | AI30: 2015-10-01 | AJ30: 1893 | AK30: 716 | AL30: 22 | AM30: 824 | AN30: 8 | AO30: 96 | AP30: 4040.405
A31: Withdrawal of offer | B31: 107 | E31: 2021-11-01 | F31: RTA | G31: 9821 | R31: 2015-11-01 | S31: 1613 | T31: 710 | U31: 22 | V31: 864 | W31: 6 | X31: 119 | Y31: 3995.553613 | AA31: 2015-11-01 | AB31: 22847 | AC31: 8712 | AD31: 304 | AE31: 10449 | AF31: 82 | AG31: 1002 | AI31: 2015-11-01 | AJ31: 1623 | AK31: 710 | AL31: 22 | AM31: 864 | AN31: 6 | AO31: 119 | AP31: 3995.553613
A32: Value of claim below ú1,000 | B32: 29 | E32: 2021-12-01 | F32: RTA | G32: 7687 | R32: 2015-12-01 | S32: 1385 | T32: 655 | U32: 24 | V32: 668 | W32: 4 | X32: 99 | Y32: 3986.581414 | AA32: 2015-12-01 | AB32: 22929 | AC32: 8808 | AD32: 294 | AE32: 10412 | AF32: 76 | AG32: 1027 | AI32: 2015-12-01 | AJ32: 1395 | AK32: 655 | AL32: 24 | AM32: 668 | AN32: 4 | AO32: 99 | AP32: 3986.581414
A33: Interim payment for child claimant | B33: 12 | E33: 2022-01-01 | F33: RTA | G33: 8745 | R33: 2016-01-01 | S33: 1362 | T33: 607 | U33: 15 | V33: 657 | W33: 7 | X33: 78 | Y33: 3651.267692 | AA33: 2016-01-01 | AB33: 22492 | AC33: 8832 | AD33: 278 | AE33: 10371 | AF33: 71 | AG33: 1041 | AI33: 2016-01-01 | AJ33: 1369 | AK33: 607 | AL33: 15 | AM33: 657 | AN33: 7 | AO33: 78 | AP33: 3651.267692
E34: 2022-02-01 | F34: RTA | G34: 7871 | R34: 2016-02-01 | S34: 1215 | T34: 500 | U34: 18 | V34: 563 | W34: 2 | X34: 103 | Y34: 3741.542524 | AA34: 2016-02-01 | AB34: 21372 | AC34: 8906 | AD34: 268 | AE34: 10165 | AF34: 68 | AG34: 1074 | AI34: 2016-02-01 | AJ34: 1220 | AK34: 500 | AL34: 18 | AM34: 563 | AN34: 2 | AO34: 103 | AP34: 3741.542524
E35: 2022-03-01 | F35: RTA | G35: 8218 | R35: 2016-03-01 | S35: 1090 | T35: 599 | U35: 19 | V35: 570 | W35: 4 | X35: 89 | Y35: 4073.583483 | AA35: 2016-03-01 | AB35: 19833 | AC35: 8664 | AD35: 266 | AE35: 9592 | AF35: 67 | AG35: 1077 | AI35: 2016-03-01 | AJ35: 1095 | AK35: 599 | AL35: 19 | AM35: 570 | AN35: 4 | AO35: 89 | AP35: 4073.583483
E36: 2022-04-01 | F36: RTA | G36: 7247 | R36: 2016-04-01 | S36: 967 | T36: 458 | U36: 23 | V36: 463 | W36: 3 | X36: 89 | Y36: 3934.267303 | AA36: 2016-04-01 | AB36: 18557 | AC36: 8262 | AD36: 261 | AE36: 8873 | AF36: 63 | AG36: 1092 | AI36: 2016-04-01 | AJ36: 975 | AK36: 458 | AL36: 23 | AM36: 463 | AN36: 3 | AO36: 89 | AP36: 3934.267303
E37: 2022-05-01 | F37: RTA | G37: 7876 | R37: 2016-05-01 | S37: 850 | T37: 447 | U37: 18 | V37: 358 | W37: 3 | X37: 59 | Y37: 3943.311525 | AA37: 2016-05-01 | AB37: 17567 | AC37: 7928 | AD37: 259 | AE37: 8243 | AF37: 61 | AG37: 1065 | AI37: 2016-05-01 | AJ37: 859 | AK37: 447 | AL37: 18 | AM37: 358 | AN37: 3 | AO37: 59 | AP37: 3943.311525
E38: 2022-06-01 | F38: RTA | G38: 7289 | R38: 2016-06-01 | S38: 741 | T38: 382 | U38: 23 | V38: 417 | W38: 6 | X38: 80 | Y38: 3885.65225 | AA38: 2016-06-01 | AB38: 16346 | AC38: 7311 | AD38: 258 | AE38: 7662 | AF38: 63 | AG38: 1067 | AI38: 2016-06-01 | AJ38: 751 | AK38: 382 | AL38: 23 | AM38: 417 | AN38: 6 | AO38: 80 | AP38: 3885.65225
E39: 2022-07-01 | F39: RTA | G39: 7438 | R39: 2016-07-01 | S39: 683 | T39: 324 | U39: 8 | V39: 300 | W39: 3 | X39: 67 | Y39: 3694.562835 | AA39: 2016-07-01 | AB39: 15257 | AC39: 6758 | AD39: 235 | AE39: 7083 | AF39: 56 | AG39: 1042 | AI39: 2016-07-01 | AJ39: 691 | AK39: 324 | AL39: 8 | AM39: 300 | AN39: 3 | AO39: 67 | AP39: 3694.562835
E40: 2021-05-01 | F40: EL | G40: 1711 | R40: 2016-08-01 | S40: 844 | T40: 267 | U40: 13 | V40: 245 | W40: 2 | X40: 47 | Y40: 3745.858723 | AA40: 2016-08-01 | AB40: 14482 | AC40: 6370 | AD40: 222 | AE40: 6679 | AF40: 55 | AG40: 1015 | AI40: 2016-08-01 | AJ40: 850 | AK40: 267 | AL40: 13 | AM40: 245 | AN40: 2 | AO40: 47 | AP40: 3745.858723
E41: 2021-06-01 | F41: EL | G41: 2442 | R41: 2016-09-01 | S41: 834 | T41: 370 | U41: 12 | V41: 372 | W41: 3 | X41: 77 | Y41: 3320.116103 | AA41: 2016-09-01 | AB41: 13466 | AC41: 6035 | AD41: 217 | AE41: 6301 | AF41: 51 | AG41: 1003 | AI41: 2016-09-01 | AJ41: 847 | AK41: 370 | AL41: 12 | AM41: 372 | AN41: 3 | AO41: 77 | AP41: 3320.116103
E42: 2021-07-01 | F42: EL | G42: 2512 | R42: 2016-10-01 | S42: 800 | T42: 359 | U42: 17 | V42: 319 | W42: 2 | X42: 50 | Y42: 3599.0362 | AA42: 2016-10-01 | AB42: 12384 | AC42: 5678 | AD42: 212 | AE42: 5796 | AF42: 45 | AG42: 957 | AI42: 2016-10-01 | AJ42: 815 | AK42: 359 | AL42: 17 | AM42: 319 | AN42: 2 | AO42: 51 | AP42: 3626.506078
E43: 2021-08-01 | F43: EL | G43: 2481 | R43: 2016-11-01 | S43: 813 | T43: 366 | U43: 24 | V43: 332 | W43: 5 | X43: 63 | Y43: 3561.542063 | AA43: 2016-11-01 | AB43: 11584 | AC43: 5334 | AD43: 214 | AE43: 5264 | AF43: 44 | AG43: 901 | AI43: 2016-11-01 | AJ43: 853 | AK43: 366 | AL43: 24 | AM43: 332 | AN43: 5 | AO43: 64 | AP43: 3529.330468
E44: 2021-09-01 | F44: EL | G44: 2730 | R44: 2016-12-01 | S44: 595 | T44: 310 | U44: 13 | V44: 312 | W44: 2 | X44: 59 | Y44: 3692.492372 | AA44: 2016-12-01 | AB44: 10794 | AC44: 4989 | AD44: 203 | AE44: 4908 | AF44: 42 | AG44: 861 | AI44: 2016-12-01 | AJ44: 614 | AK44: 310 | AL44: 13 | AM44: 312 | AN44: 2 | AO44: 59 | AP44: 3692.492372
E45: 2021-10-01 | F45: EL | G45: 2566 | R45: 2017-01-01 | S45: 813 | T45: 328 | U45: 12 | V45: 326 | W45: 1 | X45: 60 | Y45: 3953.8205 | AA45: 2017-01-01 | AB45: 10245 | AC45: 4710 | AD45: 200 | AE45: 4577 | AF45: 36 | AG45: 843 | AI45: 2017-01-01 | AJ45: 843 | AK45: 328 | AL45: 12 | AM45: 326 | AN45: 1 | AO45: 63 | AP45: 3946.495714
E46: 2021-11-01 | F46: EL | G46: 2681 | R46: 2017-02-01 | S46: 823 | T46: 227 | U46: 18 | V46: 298 | W46: 3 | X46: 58 | Y46: 3840.121551 | AA46: 2017-02-01 | AB46: 9853 | AC46: 4437 | AD46: 200 | AE46: 4312 | AF46: 37 | AG46: 798 | AI46: 2017-02-01 | AJ46: 855 | AK46: 227 | AL46: 18 | AM46: 298 | AN46: 3 | AO46: 60 | AP46: 3846.284166
E47: 2021-12-01 | F47: EL | G47: 2035 | R47: 2017-03-01 | S47: 904 | T47: 429 | U47: 12 | V47: 477 | W47: 3 | X47: 65 | Y47: 3545.99 | AA47: 2017-03-01 | AB47: 9667 | AC47: 4267 | AD47: 193 | AE47: 4219 | AF47: 36 | AG47: 774 | AI47: 2017-03-01 | AJ47: 942 | AK47: 429 | AL47: 12 | AM47: 477 | AN47: 3 | AO47: 68 | AP47: 3503.519852
E48: 2022-01-01 | F48: EL | G48: 2473 | R48: 2017-04-01 | S48: 684 | T48: 271 | U48: 5 | V48: 325 | W48: 0 | X48: 40 | Y48: 3351.445 | AA48: 2017-04-01 | AB48: 9384 | AC48: 4080 | AD48: 175 | AE48: 4081 | AF48: 33 | AG48: 725 | AI48: 2017-04-01 | AJ48: 700 | AK48: 271 | AL48: 5 | AM48: 325 | AN48: 0 | AO48: 41 | AP48: 3306.287804
E49: 2022-02-01 | F49: EL | G49: 2477 | R49: 2017-05-01 | S49: 761 | T49: 382 | U49: 11 | V49: 371 | W49: 3 | X49: 42 | Y49: 3137.203333 | AA49: 2017-05-01 | AB49: 9295 | AC49: 4015 | AD49: 168 | AE49: 4094 | AF49: 33 | AG49: 708 | AI49: 2017-05-01 | AJ49: 800 | AK49: 382 | AL49: 11 | AM49: 371 | AN49: 3 | AO49: 44 | AP49: 3207.671363
E50: 2022-03-01 | F50: EL | G50: 2820 | R50: 2017-06-01 | S50: 872 | T50: 348 | U50: 17 | V50: 367 | W50: 1 | X50: 43 | Y50: 3514.505116 | AA50: 2017-06-01 | AB50: 9426 | AC50: 3981 | AD50: 162 | AE50: 4044 | AF50: 28 | AG50: 671 | AI50: 2017-06-01 | AJ50: 901 | AK50: 348 | AL50: 17 | AM50: 367 | AN50: 1 | AO50: 44 | AP50: 3518.720909
E51: 2022-04-01 | F51: EL | G51: 2201 | R51: 2017-07-01 | S51: 689 | T51: 348 | U51: 7 | V51: 348 | W51: 1 | X51: 38 | Y51: 4191.371842 | AA51: 2017-07-01 | AB51: 9432 | AC51: 4005 | AD51: 161 | AE51: 4092 | AF51: 26 | AG51: 642 | AI51: 2017-07-01 | AJ51: 718 | AK51: 348 | AL51: 7 | AM51: 348 | AN51: 1 | AO51: 38 | AP51: 4191.371842
E52: 2022-05-01 | F52: EL | G52: 2528 | R52: 2017-08-01 | S52: 723 | T52: 367 | U52: 5 | V52: 306 | W52: 3 | X52: 44 | Y52: 3521.9175 | AA52: 2017-08-01 | AB52: 9311 | AC52: 4105 | AD52: 153 | AE52: 4153 | AF52: 27 | AG52: 639 | AI52: 2017-08-01 | AJ52: 750 | AK52: 367 | AL52: 5 | AM52: 306 | AN52: 3 | AO52: 45 | AP52: 3454.763777
E53: 2022-06-01 | F53: EL | G53: 2404 | R53: 2017-09-01 | S53: 677 | T53: 322 | U53: 15 | V53: 294 | W53: 2 | X53: 40 | Y53: 4071.3635 | AA53: 2017-09-01 | AB53: 9154 | AC53: 4057 | AD53: 156 | AE53: 4075 | AF53: 26 | AG53: 602 | AI53: 2017-09-01 | AJ53: 708 | AK53: 322 | AL53: 15 | AM53: 294 | AN53: 2 | AO53: 40 | AP53: 4071.3635
E54: 2022-07-01 | F54: EL | G54: 2257 | R54: 2017-10-01 | S54: 732 | T54: 334 | U54: 5 | V54: 304 | W54: 0 | X54: 33 | Y54: 3973.568181 | AA54: 2017-10-01 | AB54: 9086 | AC54: 4032 | AD54: 144 | AE54: 4060 | AF54: 24 | AG54: 585 | AI54: 2017-10-01 | AJ54: 756 | AK54: 334 | AL54: 5 | AM54: 304 | AN54: 0 | AO54: 34 | AP54: 3959.639705
E55: 2021-05-01 | F55: ELD | G55: 174 | R55: 2017-11-01 | S55: 645 | T55: 341 | U55: 16 | V55: 314 | W55: 3 | X55: 51 | Y55: 3931.95098 | AA55: 2017-11-01 | AB55: 8918 | AC55: 4007 | AD55: 136 | AE55: 4042 | AF55: 22 | AG55: 573 | AI55: 2017-11-01 | AJ55: 690 | AK55: 341 | AL55: 16 | AM55: 314 | AN55: 3 | AO55: 55 | AP55: 3900
E56: 2021-06-01 | F56: ELD | G56: 280 | R56: 2017-12-01 | S56: 448 | T56: 276 | U56: 8 | V56: 250 | W56: 4 | X56: 31 | Y56: 3882.059677 | AA56: 2017-12-01 | AB56: 8771 | AC56: 3973 | AD56: 131 | AE56: 3980 | AF56: 24 | AG56: 545 | AI56: 2017-12-01 | AJ56: 477 | AK56: 276 | AL56: 8 | AM56: 250 | AN56: 4 | AO56: 35 | AP56: 3988.395714
E57: 2021-07-01 | F57: ELD | G57: 422 | R57: 2018-01-01 | S57: 674 | T57: 313 | U57: 7 | V57: 254 | W57: 5 | X57: 45 | Y57: 4318.053111 | AA57: 2018-01-01 | AB57: 8632 | AC57: 3958 | AD57: 126 | AE57: 3908 | AF57: 28 | AG57: 530 | AI57: 2018-01-01 | AJ57: 716 | AK57: 313 | AL57: 7 | AM57: 254 | AN57: 5 | AO57: 49 | AP57: 4233.616122
E58: 2021-08-01 | F58: ELD | G58: 318 | R58: 2018-02-01 | S58: 641 | T58: 231 | U58: 5 | V58: 231 | W58: 5 | X58: 39 | Y58: 4043.714615 | AA58: 2018-02-01 | AB58: 8450 | AC58: 3962 | AD58: 113 | AE58: 3841 | AF58: 30 | AG58: 511 | AI58: 2018-02-01 | AJ58: 675 | AK58: 231 | AL58: 5 | AM58: 231 | AN58: 5 | AO58: 40 | AP58: 4047.62175
E59: 2021-09-01 | F59: ELD | G59: 343 | R59: 2018-03-01 | S59: 648 | T59: 325 | U59: 3 | V59: 316 | W59: 4 | X59: 41 | Y59: 4137.458048 | AA59: 2018-03-01 | AB59: 8194 | AC59: 3858 | AD59: 104 | AE59: 3680 | AF59: 31 | AG59: 487 | AI59: 2018-03-01 | AJ59: 686 | AK59: 325 | AL59: 3 | AM59: 316 | AN59: 4 | AO59: 44 | AP59: 4166.722272
E60: 2021-10-01 | F60: ELD | G60: 357 | R60: 2018-04-01 | S60: 503 | T60: 313 | U60: 3 | V60: 252 | W60: 0 | X60: 29 | Y60: 3670.626206 | AA60: 2018-04-01 | AB60: 8013 | AC60: 3900 | AD60: 102 | AE60: 3607 | AF60: 31 | AG60: 476 | AI60: 2018-04-01 | AJ60: 527 | AK60: 313 | AL60: 3 | AM60: 252 | AN60: 0 | AO60: 31 | AP60: 3611.230967
E61: 2021-11-01 | F61: ELD | G61: 427 | R61: 2018-05-01 | S61: 467 | T61: 266 | U61: 6 | V61: 223 | W61: 1 | X61: 26 | Y61: 3641.29423 | AA61: 2018-05-01 | AB61: 7719 | AC61: 3784 | AD61: 97 | AE61: 3459 | AF61: 29 | AG61: 460 | AI61: 2018-05-01 | AJ61: 491 | AK61: 266 | AL61: 6 | AM61: 223 | AN61: 1 | AO61: 28 | AP61: 3818.701785
E62: 2021-12-01 | F62: ELD | G62: 273 | R62: 2018-06-01 | S62: 496 | T62: 257 | U62: 8 | V62: 186 | W62: 3 | X62: 43 | Y62: 3560.903953 | AA62: 2018-06-01 | AB62: 7343 | AC62: 3693 | AD62: 88 | AE62: 3278 | AF62: 31 | AG62: 460 | AI62: 2018-06-01 | AJ62: 518 | AK62: 257 | AL62: 8 | AM62: 186 | AN62: 3 | AO62: 43 | AP62: 3560.903953
E63: 2022-01-01 | F63: ELD | G63: 378 | R63: 2018-07-01 | S63: 457 | T63: 264 | U63: 10 | V63: 199 | W63: 0 | X63: 41 | Y63: 3875.294146 | AA63: 2018-07-01 | AB63: 7111 | AC63: 3609 | AD63: 91 | AE63: 3129 | AF63: 30 | AG63: 463 | AI63: 2018-07-01 | AJ63: 478 | AK63: 264 | AL63: 10 | AM63: 199 | AN63: 0 | AO63: 41 | AP63: 3875.294146
E64: 2022-02-01 | F64: ELD | G64: 317 | R64: 2018-08-01 | S64: 392 | T64: 242 | U64: 11 | V64: 172 | W64: 1 | X64: 33 | Y64: 4000.580303 | AA64: 2018-08-01 | AB64: 6780 | AC64: 3484 | AD64: 97 | AE64: 2995 | AF64: 28 | AG64: 452 | AI64: 2018-08-01 | AJ64: 416 | AK64: 242 | AL64: 11 | AM64: 172 | AN64: 1 | AO64: 33 | AP64: 4000.580303
E65: 2022-03-01 | F65: ELD | G65: 445 | R65: 2018-09-01 | S65: 420 | T65: 192 | U65: 1 | V65: 150 | W65: 0 | X65: 29 | Y65: 4220.150344 | AA65: 2018-09-01 | AB65: 6523 | AC65: 3354 | AD65: 83 | AE65: 2851 | AF65: 26 | AG65: 441 | AI65: 2018-09-01 | AJ65: 429 | AK65: 192 | AL65: 1 | AM65: 150 | AN65: 0 | AO65: 30 | AP65: 4121.145333
E66: 2022-04-01 | F66: ELD | G66: 357 | R66: 2018-10-01 | S66: 496 | T66: 224 | U66: 7 | V66: 196 | W66: 0 | X66: 29 | Y66: 4412.009655 | AA66: 2018-10-01 | AB66: 6287 | AC66: 3244 | AD66: 85 | AE66: 2743 | AF66: 26 | AG66: 437 | AI66: 2018-10-01 | AJ66: 514 | AK66: 224 | AL66: 7 | AM66: 196 | AN66: 0 | AO66: 30 | AP66: 4481.609333
E67: 2022-05-01 | F67: ELD | G67: 459 | R67: 2018-11-01 | S67: 420 | T67: 249 | U67: 6 | V67: 143 | W67: 1 | X67: 24 | Y67: 4158.054166 | AA67: 2018-11-01 | AB67: 6062 | AC67: 3152 | AD67: 75 | AE67: 2572 | AF67: 24 | AG67: 410 | AI67: 2018-11-01 | AJ67: 435 | AK67: 249 | AL67: 6 | AM67: 143 | AN67: 1 | AO67: 24 | AP67: 4158.054166
E68: 2022-06-01 | F68: ELD | G68: 485 | R68: 2018-12-01 | S68: 283 | T68: 177 | U68: 2 | V68: 135 | W68: 2 | X68: 26 | Y68: 3621.280769 | AA68: 2018-12-01 | AB68: 5897 | AC68: 3053 | AD68: 69 | AE68: 2457 | AF68: 22 | AG68: 405 | AI68: 2018-12-01 | AJ68: 299 | AK68: 177 | AL68: 2 | AM68: 135 | AN68: 2 | AO68: 27 | AP68: 3616.788888
E69: 2022-07-01 | F69: ELD | G69: 427 | R69: 2019-01-01 | S69: 428 | T69: 207 | U69: 1 | V69: 162 | W69: 1 | X69: 24 | Y69: 3734.385 | AA69: 2019-01-01 | AB69: 5651 | AC69: 2947 | AD69: 63 | AE69: 2365 | AF69: 18 | AG69: 384 | AI69: 2019-01-01 | AJ69: 439 | AK69: 207 | AL69: 1 | AM69: 162 | AN69: 1 | AO69: 24 | AP69: 3734.385
E70: 2021-05-01 | F70: PL | G70: 2038 | R70: 2019-02-01 | S70: 449 | T70: 150 | U70: 4 | V70: 131 | W70: 0 | X70: 29 | Y70: 4074.730689 | AA70: 2019-02-01 | AB70: 5459 | AC70: 2866 | AD70: 62 | AE70: 2265 | AF70: 13 | AG70: 374 | AI70: 2019-02-01 | AJ70: 469 | AK70: 150 | AL70: 4 | AM70: 131 | AN70: 0 | AO70: 29 | AP70: 4074.730689
E71: 2021-06-01 | F71: PL | G71: 3252 | R71: 2019-03-01 | S71: 423 | T71: 247 | U71: 4 | V71: 154 | W71: 1 | X71: 27 | Y71: 3960.088888 | AA71: 2019-03-01 | AB71: 5234 | AC71: 2788 | AD71: 63 | AE71: 2103 | AF71: 10 | AG71: 360 | AI71: 2019-03-01 | AJ71: 444 | AK71: 247 | AL71: 4 | AM71: 154 | AN71: 1 | AO71: 29 | AP71: 3890.427586
E72: 2021-07-01 | F72: PL | G72: 3274 | R72: 2019-04-01 | S72: 389 | T72: 225 | U72: 3 | V72: 153 | W72: 3 | X72: 35 | Y72: 4232.722 | AA72: 2019-04-01 | AB72: 5120 | AC72: 2700 | AD72: 63 | AE72: 2004 | AF72: 13 | AG72: 366 | AI72: 2019-04-01 | AJ72: 405 | AK72: 225 | AL72: 3 | AM72: 153 | AN72: 3 | AO72: 36 | AP72: 4254.035277
E73: 2021-08-01 | F73: PL | G73: 3283 | R73: 2019-05-01 | S73: 400 | T73: 218 | U73: 5 | V73: 144 | W73: 0 | X73: 29 | Y73: 3990.293103 | AA73: 2019-05-01 | AB73: 5053 | AC73: 2652 | AD73: 62 | AE73: 1925 | AF73: 12 | AG73: 369 | AI73: 2019-05-01 | AJ73: 418 | AK73: 218 | AL73: 5 | AM73: 144 | AN73: 0 | AO73: 30 | AP73: 3973.95
E74: 2021-09-01 | F74: PL | G74: 3623 | R74: 2019-06-01 | S74: 364 | T74: 214 | U74: 6 | V74: 135 | W74: 2 | X74: 20 | Y74: 4906.823 | AA74: 2019-06-01 | AB74: 4921 | AC74: 2609 | AD74: 60 | AE74: 1874 | AF74: 11 | AG74: 346 | AI74: 2019-06-01 | AJ74: 373 | AK74: 214 | AL74: 6 | AM74: 135 | AN74: 2 | AO74: 22 | AP74: 4900.111818
E75: 2021-10-01 | F75: PL | G75: 3479 | R75: 2019-07-01 | S75: 406 | T75: 222 | U75: 3 | V75: 130 | W75: 3 | X75: 26 | Y75: 4101.051538 | AA75: 2019-07-01 | AB75: 4870 | AC75: 2567 | AD75: 53 | AE75: 1805 | AF75: 14 | AG75: 331 | AI75: 2019-07-01 | AJ75: 431 | AK75: 222 | AL75: 3 | AM75: 130 | AN75: 3 | AO75: 27 | AP75: 4078.79037
E76: 2021-11-01 | F76: PL | G76: 3500 | R76: 2019-08-01 | S76: 296 | T76: 206 | U76: 2 | V76: 117 | W76: 0 | X76: 23 | Y76: 4346.600869 | AA76: 2019-08-01 | AB76: 4774 | AC76: 2531 | AD76: 44 | AE76: 1750 | AF76: 13 | AG76: 321 | AI76: 2019-08-01 | AJ76: 367 | AK76: 206 | AL76: 2 | AM76: 117 | AN76: 0 | AO76: 24 | AP76: 4280.075833
E77: 2021-12-01 | F77: PL | G77: 2480 | R77: 2019-09-01 | S77: 265 | T77: 190 | U77: 5 | V77: 131 | W77: 0 | X77: 26 | Y77: 3973.503846 | AA77: 2019-09-01 | AB77: 4619 | AC77: 2529 | AD77: 48 | AE77: 1731 | AF77: 13 | AG77: 318 | AI77: 2019-09-01 | AJ77: 385 | AK77: 190 | AL77: 5 | AM77: 134 | AN77: 0 | AO77: 28 | AP77: 4135.575
E78: 2022-01-01 | F78: PL | G78: 3131 | R78: 2019-10-01 | S78: 292 | T78: 115 | U78: 5 | V78: 115 | W78: 1 | X78: 33 | Y78: 4537.004848 | AA78: 2019-10-01 | AB78: 4415 | AC78: 2420 | AD78: 46 | AE78: 1650 | AF78: 14 | AG78: 322 | AI78: 2019-10-01 | AJ78: 432 | AK78: 174 | AL78: 5 | AM78: 152 | AN78: 1 | AO78: 37 | AP78: 4641.112432
E79: 2022-02-01 | F79: PL | G79: 3195 | R79: 2019-11-01 | S79: 203 | T79: 114 | U79: 2 | V79: 84 | W79: 1 | X79: 27 | Y79: 4348.07074 | AA79: 2019-11-01 | AB79: 4198 | AC79: 2285 | AD79: 42 | AE79: 1591 | AF79: 14 | AG79: 325 | AI79: 2019-11-01 | AJ79: 327 | AK79: 171 | AL79: 6 | AM79: 114 | AN79: 1 | AO79: 30 | AP79: 4546.597
E80: 2022-03-01 | F80: PL | G80: 3465 | R80: 2019-12-01 | S80: 167 | T80: 89 | U80: 2 | V80: 64 | W80: 4 | X80: 15 | Y80: 3946.052 | AA80: 2019-12-01 | AB80: 4082 | AC80: 2197 | AD80: 42 | AE80: 1520 | AF80: 16 | AG80: 314 | AI80: 2019-12-01 | AJ80: 254 | AK80: 144 | AL80: 5 | AM80: 95 | AN80: 4 | AO80: 15 | AP80: 3946.052
E81: 2022-04-01 | F81: PL | G81: 2783 | R81: 2020-01-01 | S81: 228 | T81: 83 | U81: 4 | V81: 85 | W81: 2 | X81: 25 | Y81: 3695.816 | AA81: 2020-01-01 | AB81: 3882 | AC81: 2073 | AD81: 45 | AE81: 1443 | AF81: 17 | AG81: 315 | AI81: 2020-01-01 | AJ81: 325 | AK81: 132 | AL81: 6 | AM81: 111 | AN81: 2 | AO81: 27 | AP81: 3777.607407
E82: 2022-05-01 | F82: PL | G82: 3127 | R82: 2020-02-01 | S82: 238 | T82: 75 | U82: 1 | V82: 77 | W82: 0 | X82: 27 | Y82: 5273.801111 | AA82: 2020-02-01 | AB82: 3671 | AC82: 1998 | AD82: 42 | AE82: 1389 | AF82: 17 | AG82: 313 | AI82: 2020-02-01 | AJ82: 364 | AK82: 114 | AL82: 1 | AM82: 97 | AN82: 0 | AO82: 29 | AP82: 5334.22862
E83: 2022-06-01 | F83: PL | G83: 2904 | R83: 2020-03-01 | S83: 202 | T83: 110 | U83: 1 | V83: 77 | W83: 0 | X83: 46 | Y83: 4002.032608 | AA83: 2020-03-01 | AB83: 3450 | AC83: 1861 | AD83: 39 | AE83: 1312 | AF83: 16 | AG83: 332 | AI83: 2020-03-01 | AJ83: 335 | AK83: 173 | AL83: 4 | AM83: 104 | AN83: 0 | AO83: 48 | AP83: 4100.90625
E84: 2022-07-01 | F84: PL | G84: 2981 | R84: 2020-04-01 | S84: 278 | T84: 88 | U84: 1 | V84: 85 | W84: 1 | X84: 46 | Y84: 3777.092826 | AA84: 2020-04-01 | AB84: 3339 | AC84: 1724 | AD84: 37 | AE84: 1244 | AF84: 14 | AG84: 343 | AI84: 2020-04-01 | AJ84: 380 | AK84: 141 | AL84: 1 | AM84: 113 | AN84: 2 | AO84: 50 | AP84: 4034.8254
R85: 2020-05-01 | S85: 169 | T85: 69 | U85: 5 | V85: 66 | W85: 0 | X85: 35 | Y85: 4429.057142 | AA85: 2020-05-01 | AB85: 3108 | AC85: 1575 | AD85: 37 | AE85: 1166 | AF85: 14 | AG85: 349 | AI85: 2020-05-01 | AJ85: 230 | AK85: 122 | AL85: 7 | AM85: 92 | AN85: 0 | AO85: 38 | AP85: 4309.436842
R86: 2020-06-01 | S86: 183 | T86: 122 | U86: 5 | V86: 78 | W86: 0 | X86: 49 | Y86: 4034.436326 | AA86: 2020-06-01 | AB86: 2927 | AC86: 1483 | AD86: 36 | AE86: 1109 | AF86: 12 | AG86: 378 | AI86: 2020-06-01 | AJ86: 265 | AK86: 171 | AL86: 5 | AM86: 102 | AN86: 0 | AO86: 51 | AP86: 4113.323137
R87: 2020-07-01 | S87: 221 | T87: 72 | U87: 2 | V87: 66 | W87: 1 | X87: 32 | Y87: 3732.35 | AA87: 2020-07-01 | AB87: 2742 | AC87: 1333 | AD87: 35 | AE87: 1045 | AF87: 10 | AG87: 384 | AI87: 2020-07-01 | AJ87: 274 | AK87: 123 | AL87: 2 | AM87: 86 | AN87: 1 | AO87: 33 | AP87: 3784.4
R88: 2020-08-01 | S88: 134 | T88: 85 | U88: 1 | V88: 62 | W88: 0 | X88: 23 | Y88: 3929.012608 | AA88: 2020-08-01 | AB88: 2580 | AC88: 1212 | AD88: 34 | AE88: 990 | AF88: 10 | AG88: 384 | AI88: 2020-08-01 | AJ88: 160 | AK88: 104 | AL88: 1 | AM88: 69 | AN88: 0 | AO88: 20 | AP88: 4155.127
R89: 2020-09-01 | S89: 231 | T89: 75 | U89: 2 | V89: 62 | W89: 0 | X89: 20 | Y89: 4225.58 | AA89: 2020-09-01 | AB89: 2546 | AC89: 1097 | AD89: 31 | AE89: 921 | AF89: 10 | AG89: 378 | AI89: 2020-09-01 | AJ89: 297 | AK89: 113 | AL89: 2 | AM89: 66 | AN89: 0 | AO89: 21 | AP89: 4429.123809
R90: 2020-10-01 | S90: 222 | T90: 75 | U90: 2 | V90: 86 | W90: 0 | X90: 34 | Y90: 3905.322941 | AA90: 2020-10-01 | AB90: 2476 | AC90: 1057 | AD90: 28 | AE90: 892 | AF90: 9 | AG90: 379 | AI90: 2020-10-01 | AJ90: 309 | AK90: 100 | AL90: 2 | AM90: 104 | AN90: 0 | AO90: 35 | AP90: 4108.028
R91: 2020-11-01 | S91: 208 | T91: 86 | U91: 1 | V91: 55 | W91: 0 | X91: 37 | Y91: 3507.036486 | AA91: 2020-11-01 | AB91: 2481 | AC91: 1029 | AD91: 27 | AE91: 863 | AF91: 8 | AG91: 389 | AI91: 2020-11-01 | AJ91: 286 | AK91: 127 | AL91: 1 | AM91: 66 | AN91: 0 | AO91: 32 | AP91: 3741.734375
R92: 2020-12-01 | S92: 184 | T92: 72 | U92: 3 | V92: 69 | W92: 0 | X92: 37 | Y92: 3526.289459 | AA92: 2020-12-01 | AB92: 2498 | AC92: 1012 | AD92: 28 | AE92: 868 | AF92: 4 | AG92: 411 | AI92: 2020-12-01 | AJ92: 249 | AK92: 118 | AL92: 3 | AM92: 91 | AN92: 1 | AO92: 38 | AP92: 3454.545
R93: 2021-01-01 | S93: 319 | T93: 79 | U93: 2 | V93: 75 | W93: 0 | X93: 42 | Y93: 3453.976904 | AA93: 2021-01-01 | AB93: 2589 | AC93: 1008 | AD93: 26 | AE93: 858 | AF93: 2 | AG93: 428 | AI93: 2021-01-01 | AJ93: 310 | AK93: 135 | AL93: 2 | AM93: 96 | AN93: 0 | AO93: 44 | AP93: 3490.159772
R94: 2021-02-01 | S94: 295 | T94: 88 | U94: 4 | V94: 54 | W94: 0 | X94: 45 | Y94: 3844.666666 | AA94: 2021-02-01 | AB94: 2646 | AC94: 1021 | AD94: 29 | AE94: 835 | AF94: 2 | AG94: 446 | AI94: 2021-02-01 | AJ94: 161 | AK94: 81 | AL94: 1 | AM94: 53 | AN94: 0 | AO94: 45 | AP94: 3844.666666
R95: 2021-03-01 | S95: 365 | T95: 156 | U95: 2 | V95: 99 | W95: 1 | X95: 45 | Y95: 3700.458 | AA95: 2021-03-01 | AB95: 2809 | AC95: 1067 | AD95: 30 | AE95: 857 | AF95: 3 | AG95: 445 | AI95: 2021-03-01 | AJ95: 290 | AK95: 147 | AL95: 2 | AM95: 99 | AN95: 1 | AO95: 45 | AP95: 3700.458
R96: 2021-04-01 | S96: 319 | T96: 136 | U96: 4 | V96: 87 | W96: 0 | X96: 29 | Y96: 3493.789655 | AA96: 2021-04-01 | AB96: 2850 | AC96: 1115 | AD96: 33 | AE96: 859 | AF96: 2 | AG96: 428 | AI96: 2021-04-01 | AJ96: 302 | AK96: 132 | AL96: 4 | AM96: 87 | AN96: 0 | AO96: 29 | AP96: 3493.789655
R97: 2021-05-01 | S97: 259 | T97: 134 | U97: 1 | V97: 84 | W97: 0 | X97: 43 | Y97: 3859.160232 | AA97: 2021-05-01 | AB97: 2940 | AC97: 1180 | AD97: 29 | AE97: 877 | AF97: 2 | AG97: 436 | AI97: 2021-05-01 | AJ97: 240 | AK97: 129 | AL97: 1 | AM97: 84 | AN97: 0 | AO97: 44 | AP97: 3907.815681
R98: 2021-06-01 | S98: 280 | T98: 190 | U98: 1 | V98: 69 | W98: 1 | X98: 17 | Y98: 4477.42647 | AA98: 2021-06-01 | AB98: 3037 | AC98: 1248 | AD98: 25 | AE98: 868 | AF98: 3 | AG98: 404 | AI98: 2021-06-01 | AJ98: 258 | AK98: 190 | AL98: 1 | AM98: 69 | AN98: 1 | AO98: 17 | AP98: 4477.42647
R99: 2021-07-01 | S99: 422 | T99: 156 | U99: 2 | V99: 65 | W99: 0 | X99: 35 | Y99: 3377.421428 | AA99: 2021-07-01 | AB99: 3238 | AC99: 1332 | AD99: 25 | AE99: 867 | AF99: 2 | AG99: 407 | AI99: 2021-07-01 | AJ99: 411 | AK99: 154 | AL99: 2 | AM99: 65 | AN99: 0 | AO99: 35 | AP99: 3377.421428
R100: 2021-08-01 | S100: 318 | T100: 187 | U100: 2 | V100: 70 | W100: 0 | X100: 23 | Y100: 3008.734782 | AA100: 2021-08-01 | AB100: 3422 | AC100: 1434 | AD100: 26 | AE100: 875 | AF100: 2 | AG100: 407 | AI100: 2021-08-01 | AJ100: 310 | AK100: 186 | AL100: 2 | AM100: 70 | AN100: 0 | AO100: 23 | AP100: 3008.734782
R101: 2021-09-01 | S101: 343 | T101: 187 | U101: 9 | V101: 88 | W101: 0 | X101: 56 | Y101: 3245.840178 | AA101: 2021-09-01 | AB101: 3534 | AC101: 1546 | AD101: 33 | AE101: 901 | AF101: 2 | AG101: 443 | AI101: 2021-09-01 | AJ101: 322 | AK101: 187 | AL101: 9 | AM101: 88 | AN101: 0 | AO101: 56 | AP101: 3245.840178
R102: 2021-10-01 | S102: 357 | T102: 167 | U102: 4 | V102: 70 | W102: 0 | X102: 46 | Y102: 3487.340217 | AA102: 2021-10-01 | AB102: 3669 | AC102: 1638 | AD102: 35 | AE102: 885 | AF102: 2 | AG102: 455 | AI102: 2021-10-01 | AJ102: 335 | AK102: 162 | AL102: 4 | AM102: 70 | AN102: 0 | AO102: 46 | AP102: 3487.340217
R103: 2021-11-01 | S103: 427 | T103: 185 | U103: 6 | V103: 100 | W103: 1 | X103: 37 | Y103: 3714.316756 | AA103: 2021-11-01 | AB103: 3888 | AC103: 1737 | AD103: 40 | AE103: 930 | AF103: 3 | AG103: 455 | AI103: 2021-11-01 | AJ103: 408 | AK103: 180 | AL103: 6 | AM103: 100 | AN103: 1 | AO103: 37 | AP103: 3714.316756
R104: 2021-12-01 | S104: 273 | T104: 197 | U104: 4 | V104: 90 | W104: 0 | X104: 31 | Y104: 3321.544838 | AA104: 2021-12-01 | AB104: 3977 | AC104: 1862 | AD104: 41 | AE104: 951 | AF104: 3 | AG104: 449 | AI104: 2021-12-01 | AJ104: 252 | AK104: 194 | AL104: 4 | AM104: 90 | AN104: 0 | AO104: 31 | AP104: 3321.544838
R105: 2022-01-01 | S105: 378 | T105: 193 | U105: 5 | V105: 92 | W105: 0 | X105: 63 | Y105: 3527.666825 | AA105: 2022-01-01 | AB105: 4036 | AC105: 1976 | AD105: 44 | AE105: 968 | AF105: 3 | AG105: 470 | AI105: 2022-01-01 | AJ105: 360 | AK105: 192 | AL105: 5 | AM105: 92 | AN105: 0 | AO105: 63 | AP105: 3527.666825
R106: 2022-02-01 | S106: 317 | T106: 163 | U106: 4 | V106: 59 | W106: 0 | X106: 63 | Y106: 3380.203333 | AA106: 2022-02-01 | AB106: 4058 | AC106: 2051 | AD106: 44 | AE106: 973 | AF106: 3 | AG106: 488 | AI106: 2022-02-01 | AJ106: 308 | AK106: 160 | AL106: 4 | AM106: 59 | AN106: 0 | AO106: 63 | AP106: 3380.203333
R107: 2022-03-01 | S107: 445 | T107: 228 | U107: 5 | V107: 71 | W107: 0 | X107: 36 | Y107: 4066.627777 | AA107: 2022-03-01 | AB107: 4138 | AC107: 2123 | AD107: 47 | AE107: 945 | AF107: 2 | AG107: 479 | AI107: 2022-03-01 | AJ107: 416 | AK107: 223 | AL107: 5 | AM107: 71 | AN107: 0 | AO107: 36 | AP107: 4066.627777
R108: 2022-04-01 | S108: 357 | T108: 189 | U108: 5 | V108: 79 | W108: 0 | X108: 7 | Y108: 4384.605714 | AA108: 2022-04-01 | AB108: 4176 | AC108: 2176 | AD108: 48 | AE108: 937 | AF108: 2 | AG108: 457 | AI108: 2022-04-01 | AJ108: 329 | AK108: 186 | AL108: 5 | AM108: 79 | AN108: 0 | AO108: 7 | AP108: 4384.605714
R109: 2022-05-01 | S109: 459 | T109: 250 | U109: 4 | V109: 76 | W109: 1 | X109: 36 | Y109: 3896.656388 | AA109: 2022-05-01 | AB109: 4376 | AC109: 2292 | AD109: 51 | AE109: 929 | AF109: 3 | AG109: 450 | AI109: 2022-05-01 | AJ109: 394 | AK109: 246 | AL109: 4 | AM109: 76 | AN109: 1 | AO109: 36 | AP109: 3896.656388
R110: 2022-06-01 | S110: 485 | T110: 211 | U110: 7 | V110: 70 | W110: 1 | X110: 19 | Y110: 3997.487894 | AA110: 2022-06-01 | AB110: 4581 | AC110: 2313 | AD110: 57 | AE110: 930 | AF110: 3 | AG110: 452 | AI110: 2022-06-01 | AJ110: 487 | AK110: 210 | AL110: 7 | AM110: 70 | AN110: 1 | AO110: 19 | AP110: 3997.487894
R111: 2022-07-01 | S111: 427 | T111: 417 | U111: 9 | V111: 56 | W111: 0 | X111: 28 | Y111: 3584.553571 | AA111: 2022-07-01 | AB111: 4586 | AC111: 2574 | AD111: 64 | AE111: 921 | AF111: 3 | AG111: 445

Sheet Year Calculations (hidden)
A1: Period | B1: CNFs sent | C1: CNFs left at stage 1 | D1: Stage 2 exit | E1: Exit process | F1: Court pack | G1: Settled claims
A2: 2013-14 | B2: =SUM('Backing Sheet Data'!S4:S15) -> 11797 | C2: =SUM('Backing Sheet Data'!T4:T15) -> 4361 | D2: =SUM('Backing Sheet Data'!U4:U15) -> 51 | E2: =SUM('Backing Sheet Data'!V4:V15) -> 3495 | F2: =SUM('Backing Sheet Data'!W4:W15) -> 20 | G2: =SUM('Backing Sheet Data'!X4:X15) -> 297
A3: 2014-15 | B3: =SUM('Backing Sheet Data'!S16:S27) -> 21867 | C3: =SUM('Backing Sheet Data'!T16:T27) -> 8084 | D3: =SUM('Backing Sheet Data'!U16:U27) -> 328 | E3: =SUM('Backing Sheet Data'!V16:V27) -> 10126 | F3: =SUM('Backing Sheet Data'!W16:W27) -> 109 | G3: =SUM('Backing Sheet Data'!X16:X27) -> 977
A4: 2015-16 | B4: =SUM('Backing Sheet Data'!S28:S39) -> 15257 | C4: =SUM('Backing Sheet Data'!T28:T39) -> 6758 | D4: =SUM('Backing Sheet Data'!U28:U39) -> 235 | E4: =SUM('Backing Sheet Data'!V28:V39) -> 7083 | F4: =SUM('Backing Sheet Data'!W28:W39) -> 56 | G4: =SUM('Backing Sheet Data'!X28:X39) -> 1042
A5: 2016-17 | B5: =SUM('Backing Sheet Data'!S40:S51) -> 9432 | C5: =SUM('Backing Sheet Data'!T40:T51) -> 4005 | D5: =SUM('Backing Sheet Data'!U40:U51) -> 161 | E5: =SUM('Backing Sheet Data'!V40:V51) -> 4092 | F5: =SUM('Backing Sheet Data'!W40:W51) -> 26 | G5: =SUM('Backing Sheet Data'!X40:X51) -> 642
A6: 2017-18 | B6: =SUM('Backing Sheet Data'!S52:S63) -> 7111 | C6: =SUM('Backing Sheet Data'!T52:T63) -> 3609 | D6: =SUM('Backing Sheet Data'!U52:U63) -> 91 | E6: =SUM('Backing Sheet Data'!V52:V63) -> 3129 | F6: =SUM('Backing Sheet Data'!W52:W63) -> 30 | G6: =SUM('Backing Sheet Data'!X52:X63) -> 463
A7: 2018-19 | B7: =SUM('Backing Sheet Data'!S64:S75) -> 4870 | C7: =SUM('Backing Sheet Data'!T64:T75) -> 2567 | D7: =SUM('Backing Sheet Data'!U64:U75) -> 53 | E7: =SUM('Backing Sheet Data'!V64:V75) -> 1805 | F7: =SUM('Backing Sheet Data'!W64:W75) -> 14 | G7: =SUM('Backing Sheet Data'!X64:X75) -> 331
A8: 2019-20 | B8: =SUM('Backing Sheet Data'!S76:S87) -> 2742 | C8: =SUM('Backing Sheet Data'!T76:T87) -> 1333 | D8: =SUM('Backing Sheet Data'!U76:U87) -> 35 | E8: =SUM('Backing Sheet Data'!V76:V87) -> 1045 | F8: =SUM('Backing Sheet Data'!W76:W87) -> 10 | G8: =SUM('Backing Sheet Data'!X76:X87) -> 384
A9: 2020-21 | B9: =SUM('Backing Sheet Data'!S88:S116) -> 7824 | C9: =SUM('Backing Sheet Data'!T88:T116) -> 3906 | D9: =SUM('Backing Sheet Data'!U88:U116) -> 89 | E9: =SUM('Backing Sheet Data'!V88:V116) -> 1788 | F9: =SUM('Backing Sheet Data'!W88:W116) -> 5 | G9: =SUM('Backing Sheet Data'!X88:X116) -> 852
